bitfinex/quotes_ETHUSD_20250319
["timestamp","ask_amount","ask_price","bid_price","bid_amount"]
[1742405592767,24.0982126,2038.0,2037.5,4.90797]
[1742405592970,24.0982126,2038.0,2037.5,4.90787]
[1742405592971,0.55,2037.8,2037.5,4.90787]
[1742405593296,0.55,2037.8,2037.6,4.90761]
[1742405593456,22.095,2038.0,2037.6,5.476091]
[1742405593655,22.095,2038.0,2037.7,4.90735]
[1742405594094,22.095,2038.0,2037.8,4.90716]
[1742405594287,22.095,2038.0,2037.7,4.90732]
[1742405594594,22.095,2038.0,2037.8,4.90718]
[1742405594799,22.095,2038.0,2037.5,4.90797]
[1742405594967,22.095,2038.0,2037.8,4.90716]
[1742405595294,0.55,2037.9,2037.4,5.68402]
[1742405595593,5.45705,2037.9,2037.4,5.68402]
[1742405595802,0.55,2037.9,2037.5,9.81565]
[1742405596097,0.55,2037.9,2037.5,4.90795]
[1742405596302,4.5498396,2037.9,2037.5,4.90795]
[1742405596590,13.98158555,2037.9,2037.4,5.68406]
[1742405596891,4.5498396,2037.9,2037.6,9.81517]
[1742405597089,4.5498396,2037.9,2037.6,4.90754]
[1742405597252,4.5498396,2037.9,2037.5,4.90789]
[1742405597453,3.15516096,2037.8,2037.5,4.90789]
[1742405597694,0.55,2037.7,2037.5,4.90789]
[1742405597999,5.45751,2037.7,2037.3,4.90843]
[1742405598167,14.88983595,2037.7,2037.2,4.90868]
[1742405598493,0.55,2037.3,2036.9,5.71172]
[1742405598808,0.55,2037.3,2037.0,4.90914]
[1742405599312,0.55,2037.1,2036.8,4.90955]
[1742405599861,0.55,2037.1,2036.8,4.90954]
[1742405600196,0.55,2037.1,2036.8,4.90953]
[1742405600495,0.55,2037.1,2036.8,9.81904]
[1742405600671,4.52462595,2037.3,2036.7,0.8024]
[1742405600867,0.55,2037.3,2037.1,4.90881]
[1742405601079,0.55,2037.3,2036.9,4.9092]
[1742405601303,0.55,2037.1,2036.7,5.71221]
[1742405601618,6.24135,2037.1,2036.7,4.90981]
[1742405601981,0.55,2037.1,2036.7,4.90987]
[1742405602201,5.07462595,2036.9,2036.4,4.91042]
[1742405602411,9.43407595,2036.9,2036.4,4.91042]
[1742405602591,5.45981,2036.8,2036.3,5.72324]
[1742405602802,5.45981,2036.8,2036.4,4.91055]
[1742405603318,5.4597,2036.8,2036.4,4.91055]
[1742405603613,5.4597,2036.8,2036.4,4.91049]
[1742405604014,5.4597,2036.8,2036.3,5.72323]
[1742405604015,0.55,2036.6,2036.3,5.72323]
[1742405604221,0.55,2036.6,2036.3,4.91083]
[1742405604379,0.55,2036.4,2036.1,0.8154]
[1742405604580,9.43554595,2036.3,2035.9,5.7272]
[1742405604790,9.43605595,2036.1,2035.7,4.91211]
[1742405605087,4.52462595,2035.9,2035.6,4.91246]
[1742405605279,10.19515595,2035.7,2035.5,0.005]
[1742405605513,5.673,2035.8,2035.5,4.96682423]
[1742405605514,10.19762595,2035.8,2035.5,4.96682423]
[1742405605679,10.19762595,2035.8,2035.6,4.91241]
[1742405605879,9.64762595,2035.8,2035.6,4.91237]
[1742405606082,4.52462595,2036.0,2035.9,4.91181]
[1742405606276,0.8045,2035.9,2035.5,0.005]
[1742405606524,13.79167595,2035.6,2035.5,0.005]
[1742405608093,8.87912595,2035.6,2035.5,0.005]
[1742405608417,10.79167595,2035.6,2035.5,0.005]
[1742405609038,11.41539114,2035.6,2035.5,0.005]
[1742405610236,6.50284114,2035.6,2035.5,0.005]
[1742405610737,5.07462595,2035.6,2035.5,0.005]
[1742405611034,4.52462595,2035.8,2035.5,4.91779]
[1742405611237,4.52462595,2035.6,2035.5,0.005]
[1742405611612,9.43717595,2035.6,2035.5,0.005]
[1742405611814,9.98717595,2035.6,2035.5,0.005]
[1742405612009,12.55676744,2035.6,2035.5,0.005]
[1742405613136,15.55676744,2035.6,2035.5,0.005]
[1742405613513,10.64421744,2035.6,2035.5,0.005]
[1742405613717,15.55676744,2035.6,2035.5,0.005]
[1742405614427,16.38986744,2035.6,2035.5,0.005]
[1742405614735,0.8331,2035.1,2034.0,4.91625]
[1742405614966,3.0,2035.4,2034.0,4.91642]
[1742405614967,4.52462595,2034.1,2034.0,4.91642]
[1742405615117,3.0,2034.5,2033.9,4.91657]
[1742405615118,4.52462595,2034.4,2034.1,4.91605]
[1742405615445,5.46632,2034.1,2033.7,4.91701]
[1742405615648,5.07462595,2033.8,2033.5,0.2132477]
[1742405615956,8.268,2034.3,2033.7,0.8288]
[1742405616106,4.52462595,2034.4,2034.2,4.91585]
[1742405616323,4.52462595,2034.4,2033.7,0.8288]
[1742405616324,5.9929506,2034.4,2033.7,0.8288]
[1742405616530,5.9929506,2034.4,2033.5,5.1307677]
[1742405616531,4.91738,2033.6,2033.5,0.2132477]
[1742405616733,4.91738,2033.6,2032.7,4.91938]
[1742405616734,4.91862,2033.1,2032.7,4.91938]
[1742405616958,4.91862,2033.1,2031.6,5.0222]
[1742405616959,4.52462595,2032.8,2031.7,6.854]
[1742405617166,0.773,2033.6,2032.9,4.91893]
[1742405617463,0.773,2033.6,2032.9,4.91892]
[1742405617464,0.55,2033.2,2032.9,4.91892]
[1742405617621,1.096821,2033.2,2032.7,6.06]
[1742405617817,0.55,2033.5,2033.1,4.91845]
[1742405618229,5.07462595,2033.5,2032.9,4.91899]
[1742405618446,4.52462595,2033.3,2032.9,4.91899]
[1742405618652,4.52462595,2033.3,2032.8,4.91932]
[1742405618823,0.55,2033.3,2033.1,4.91856]
[1742405619025,0.55,2033.4,2033.0,4.91881]
[1742405619223,1.6265146,2033.4,2032.8,4.91932]
[1742405619463,0.55,2033.2,2032.9,4.91904]
[1742405619762,5.46835,2033.2,2032.8,4.91908]
[1742405620064,0.55,2033.2,2032.7,6.06]
[1742405620353,4.91894,2033.0,2032.3,6.2253]
[1742405620659,4.91944,2032.8,2032.4,4.92009]
[1742405620861,3.0,2033.2,2032.5,6.06]
[1742405621157,6.239,2033.6,2033.1,4.91842]
[1742405621364,5.69044,2033.6,2033.1,4.91849]
[1742405621569,2.71241945,2033.6,2033.1,4.91837]
[1742405621724,7.91772,2033.5,2033.1,9.83686]
[1742405621921,5.46804,2033.4,2032.9,4.91891]
[1742405622225,5.46804,2033.4,2033.1,4.91854]
[1742405622523,0.55,2033.4,2033.0,4.9188]
[1742405622719,4.91813,2033.3,2032.7,6.06]
[1742405622943,5.46798,2033.4,2033.0,4.91874]
[1742405623540,0.55,2033.4,2033.1,4.91858]
[1742405623965,10.38869,2033.5,2033.1,4.91858]
[1742405624137,0.55,2033.4,2032.9,0.799]
[1742405624344,0.55,2033.4,2033.1,9.83693]
[1742405624878,0.55,2033.4,2032.9,0.799]
[1742405625175,6.34143195,2033.4,2033.0,4.91869]
[1742405625366,4.91819,2033.3,2032.8,4.9191]
[1742405625536,4.91816,2033.3,2032.9,4.9189]
[1742405625736,4.91816,2033.3,2032.9,9.83783]
[1742405625940,6.5911992,2033.3,2033.0,4.91881]
[1742405626173,6.34126195,2033.4,2033.0,4.9188]
[1742405626374,6.34126195,2033.4,2033.0,4.91872]
[1742405626677,6.34126195,2033.4,2032.7,10.97953]
[1742405626678,1.42334195,2033.4,2033.2,4.91832]
[1742405626884,1.42334195,2033.4,2032.8,4.91932]
[1742405626885,0.7625,2033.9,2033.5,4.91748]
[1742405627043,0.7625,2033.9,2033.4,4.91787]
[1742405627248,27.3555,2034.0,2033.6,4.91728]
[1742405627444,32.27209,2034.0,2033.6,4.91728]
[1742405627779,22.439,2034.0,2033.5,4.9176]
[1742405627952,4.91689,2033.9,2033.5,0.005]
[1742405628288,5.46738,2033.6,2033.5,0.005]
[1742405628442,14.71598,2033.6,2033.5,0.005]
[1742405629654,0.55,2033.0,2032.7,4.91952]
[1742405630005,5.46892,2033.0,2032.6,4.91967]
[1742405630178,11.971432,2033.0,2032.6,4.91967]
[1742405630386,7.052382,2033.0,2032.6,9.83936]
[1742405630542,7.052382,2033.0,2032.2,0.9815104]
[1742405630543,2.133462,2033.0,2032.4,4.92019]
[1742405630882,5.46923,2032.9,2032.5,4.91984]
[1742405631080,4.91948,2032.8,2032.4,4.92021]
[1742405631287,5.46909,2032.9,2032.5,4.91992]
[1742405631491,5.46909,2032.9,2032.5,9.83986]
[1742405631691,0.55,2032.9,2032.6,4.91973]
[1742405631889,0.55,2032.9,2032.6,4.91966]
[1742405632387,11.54489835,2032.9,2032.5,4.92002]
[1742405632893,11.54489835,2032.9,2032.2,5.67096]
[1742405632894,1.15643835,2032.9,2032.6,4.91969]
[1742405633187,5.436,2033.0,2032.3,4.9205]
[1742405633391,5.436,2033.0,2032.9,4.91908]
[1742405633697,22.428,2033.2,2032.9,4.91891]
[1742405634056,22.428,2033.2,2032.9,9.83784]
[1742405634253,17.002,2033.2,2032.9,9.83789]
[1742405634494,17.002,2033.2,2032.9,4.91891]
[1742405634813,24.32991571,2033.2,2032.9,4.91908]
[1742405635096,19.41147571,2033.2,2032.9,4.91895]
[1742405635390,17.002,2033.2,2033.0,4.91876]
[1742405635594,6.05745849,2033.6,2032.8,0.8258]
[1742405635595,11.404,2033.8,2032.9,4.91905]
[1742405635897,4.9169,2033.8,2033.4,9.83536]
[1742405636196,4.9169,2033.8,2033.4,9.83539]
[1742405636398,1.6875504,2033.8,2033.6,4.91721]
[1742405636695,5.41,2034.0,2033.7,4.91701]
[1742405636990,5.41,2034.0,2033.8,9.83352]
[1742405637194,5.41,2034.0,2033.8,4.91673]
[1742405637560,5.41,2034.0,2033.9,4.91666]
[1742405637758,5.41,2034.0,2033.8,4.91673]
[1742405638594,21.92118,2034.1,2033.8,4.91673]
[1742405638829,25.2520204,2034.1,2033.8,4.91673]
[1742405639303,25.2520204,2034.1,2033.5,6.06]
[1742405639501,25.2520204,2034.1,2033.8,4.91673]
[1742405639704,25.2520204,2034.1,2033.9,4.91657]
[1742405639888,25.2520204,2034.1,2033.8,4.91673]
[1742405639889,22.406,2034.1,2033.6,4.91737]
[1742405640093,0.55,2034.0,2033.5,6.06]
[1742405640268,4.91737,2033.7,2033.5,6.06]
[1742405640590,4.9182,2033.3,2032.9,10.97888]
[1742405640905,4.9182,2033.3,2032.9,4.91888]
[1742405641103,0.54682,2033.3,2033.0,4.91874]
[1742405641301,9.45814305,2033.2,2032.7,4.91956]
[1742405641505,4.53964305,2033.2,2032.7,4.91956]
[1742405641672,6.232,2033.1,2032.6,6.06]
[1742405641874,5.406,2033.1,2032.9,9.83805]
[1742405642095,15.68665305,2033.4,2032.9,4.91899]
[1742405642297,4.91826,2033.3,2032.8,4.91932]
[1742405642494,22.17328836,2033.4,2033.0,4.91881]
[1742405642696,4.91814,2033.3,2033.0,4.91881]
[1742405643014,9.83642,2033.3,2032.9,4.91906]
[1742405643176,4.91846,2033.2,2032.8,4.91929]
[1742405643500,4.91846,2033.2,2032.7,4.91953]
[1742405643501,1.76342653,2033.2,2032.6,6.06]
[1742405643708,5.403,2033.7,2033.5,4.91754]
[1742405643913,5.403,2033.7,2033.6,4.91247399]
[1742405644108,11.14145,2034.0,2033.6,4.91247399]
[1742405644280,4.91666,2033.9,2033.6,4.91247399]
[1742405644473,8.821971,2033.9,2033.6,4.91247399]
[1742405644709,3.905311,2033.9,2033.6,9.82973399]
[1742405644916,6.225,2034.0,2033.2,4.91835]
[1742405645083,5.405,2034.0,2033.4,4.91787]
[1742405645284,5.405,2034.0,2033.7,4.91713]
[1742405645599,10.3215,2034.0,2033.6,9.83459]
[1742405645793,10.3215,2034.0,2033.7,4.91714]
[1742405645975,8.14094,2033.9,2033.6,4.91725]
[1742405646518,3.22427,2033.9,2033.6,4.91725]
[1742405646678,3.22427,2033.9,2033.5,4.91759]
[1742405646876,3.22427,2033.9,2033.6,4.91722]
[1742405647074,3.22427,2033.9,2033.5,4.91756]
[1742405647075,8.14108,2033.9,2033.5,4.91756]
[1742405647387,8.14108,2033.9,2033.5,9.83496]
[1742405647710,3.22427,2033.9,2033.7,4.91704]
[1742405648014,5.405,2034.0,2033.8,4.91679]
[1742405648370,5.405,2034.0,2033.9,4.91666]
[1742405648804,17.005,2034.1,2034.0,4.91642]
[1742405648973,4.71514697,2034.5,2034.0,4.91642]
[1742405649169,0.5527847,2034.4,2034.1,4.91606]
[1742405649413,4.91603,2034.2,2033.9,5.67152]
[1742405649709,4.91578,2034.3,2033.9,4.91662]
[1742405649876,4.91578,2034.3,2033.9,4.91655]
[1742405650286,9.83167,2034.3,2033.9,4.91655]
[1742405650611,6.96394017,2034.3,2033.9,9.83311]
[1742405650808,2.04816017,2034.3,2034.0,9.83268]
[1742405651011,2.04816017,2034.3,2034.1,4.91617]
[1742405651197,2.04816017,2034.3,2034.0,9.83258]
[1742405651406,4.91595,2034.2,2033.9,4.9166]
[1742405651616,6.15920949,2034.2,2033.8,4.91674]
[1742405651916,1.24325949,2034.2,2033.9,4.91655]
[1742405652130,1.24325949,2034.2,2033.9,4.91651]
[1742405652487,1.24325949,2034.2,2033.9,4.91658]
[1742405652690,1.24325949,2034.2,2034.0,4.91641]
[1742405652996,5.4682947,2034.4,2034.1,4.91617]
[1742405653190,0.5527847,2034.4,2033.9,4.91647]
[1742405653395,4.91581,2034.3,2034.0,4.91632]
[1742405653596,5.4682547,2034.4,2034.0,9.83254]
[1742405653795,0.5527847,2034.4,2034.3,4.91569]
[1742405654126,6.1707,2034.6,2034.3,4.91566]
[1742405654720,6.1707,2034.6,2034.4,4.91543]
[1742405654920,6.1707,2034.6,2034.4,4.91541]
[1742405655096,11.08574,2034.6,2034.2,4.91574]
[1742405655300,14.8576547,2034.6,2034.3,4.91561]
[1742405655690,9.9426147,2034.6,2034.3,4.91553]
[1742405655883,14.8576347,2034.6,2034.3,4.91553]
[1742405656288,9.9426147,2034.6,2034.4,4.91535]
[1742405656598,21.91874,2034.7,2034.6,4.91497]
[1742405656599,22.345,2034.7,2034.6,4.91497]
[1742405657185,6.1045,2035.0,2034.7,4.91456]
[1742405657385,6.1045,2035.0,2034.8,4.91445]
[1742405658625,5.344,2035.0,2034.8,4.91437]
[1742405658786,22.67378,2035.3,2034.9,4.91424]
[1742405658985,5.284,2035.2,2035.0,4.91387]
[1742405659392,5.284,2035.2,2035.0,4.91385]
[1742405659604,17.7605,2035.3,2035.1,4.91376]
[1742405659792,17.7605,2035.3,2035.0,4.91391]
[1742405659990,17.0,2035.3,2035.1,4.91368]
[1742405660328,17.0,2035.3,2035.1,9.82734]
[1742405660530,17.0,2035.3,2035.2,4.91352]
[1742405660885,0.7527,2035.6,2035.2,4.9134]
[1742405660886,10.23993,2035.5,2035.2,4.9134]
[1742405661087,7.45820643,2035.5,2035.2,4.91336]
[1742405662030,12.37112643,2035.5,2035.1,4.91359]
[1742405662326,12.37112643,2035.5,2035.2,4.91343]
[1742405662735,6.0677,2035.6,2035.3,4.91313]
[1742405662938,5.315,2035.6,2035.5,4.91279]
[1742405663233,7.3478,2035.8,2035.5,4.91279]
[1742405663234,6.26997,2035.8,2035.5,4.91271]
[1742405663421,5.312,2035.7,2035.5,4.91271]
[1742405663592,16.997,2035.9,2035.1,6.1047]
[1742405663800,9.82532,2035.6,2035.2,4.91341]
[1742405664001,4.91258,2035.6,2035.2,4.91341]
[1742405664333,4.91258,2035.6,2035.2,4.91335]
[1742405664537,4.91303,2035.5,2035.1,5.70742]
[1742405664736,4.91338,2035.3,2034.9,10.97412]
[1742405665064,10.37637,2035.4,2035.0,4.9139]
[1742405665335,9.44472383,2035.3,2034.9,15.8882]
[1742405665535,9.44472383,2035.3,2035.0,4.91398]
[1742405665735,4.53142383,2035.3,2035.0,4.91387]
[1742405665901,4.53142383,2035.3,2034.9,10.97421]
[1742405665902,9.44480383,2035.3,2034.9,10.97415]
[1742405666102,4.53142383,2035.1,2034.9,4.91416]
[1742405666347,6.04959921,2035.1,2034.8,4.91446]
[1742405666501,5.304,2035.1,2034.9,4.91416]
[1742405666702,5.304,2035.1,2034.9,4.91414]
[1742405666898,5.304,2035.1,2034.8,4.91443]
[1742405667102,5.304,2035.1,2034.7,4.91469]
[1742405667344,14.74936383,2035.1,2034.7,9.82925]
[1742405667527,16.79799321,2035.1,2034.7,9.82914]
[1742405667728,16.79799321,2035.1,2034.8,4.91447]
[1742405668439,11.88405321,2035.1,2034.8,4.91447]
[1742405668613,16.79796321,2035.1,2034.7,4.91456]
[1742405668820,4.91449,2034.8,2034.3,10.97568]
[1742405669021,4.91504,2034.6,2034.3,6.06]
[1742405669224,4.91506,2034.6,2034.2,4.91576]
[1742405669534,4.91506,2034.6,2034.2,9.83154]
[1742405669735,6.0421,2034.7,2034.4,4.91531]
[1742405670035,4.915,2034.6,2034.2,9.83152]
[1742405670210,4.915,2034.6,2034.2,9.83153]
[1742405670415,10.2069,2034.7,2034.3,4.9156]
[1742405670612,10.2069,2034.7,2034.4,4.91543]
[1742405670949,5.292,2034.7,2034.4,4.91535]
[1742405671148,10.20682,2034.7,2034.4,4.91535]
[1742405671452,4.915,2034.6,2034.3,4.91567]
[1742405671834,11.03579703,2034.7,2034.3,4.91567]
[1742405672479,15.56722086,2034.7,2034.3,4.91555]
[1742405672952,15.56722086,2034.7,2034.3,4.91552]
[1742405673477,15.56722086,2034.7,2034.3,9.83104]
[1742405673619,15.56722086,2034.7,2034.4,4.91536]
[1742405673819,6.12098703,2034.7,2034.1,10.97612]
[1742405674130,6.12098703,2034.7,2034.4,9.83086]
[1742405674331,11.03572703,2034.7,2034.4,4.91543]
[1742405674753,6.12098703,2034.7,2034.4,4.91534]
[1742405674957,6.12098703,2034.7,2034.5,4.91515]
[1742405675254,5.259,2034.9,2034.8,4.91429]
[1742405675434,5.259,2034.9,2034.5,4.91501]
[1742405675642,10.17119,2035.0,2034.6,4.91488]
[1742405675833,10.17119,2035.0,2034.7,4.91469]
[1742405676162,9.25351032,2035.0,2034.7,4.91469]
[1742405676362,9.25351032,2035.0,2034.8,4.91445]
[1742405676565,9.25351032,2035.0,2034.5,4.91508]
[1742405676566,9.24751032,2035.0,2034.5,4.91508]
[1742405676861,5.251,2035.0,2034.9,4.91424]
[1742405677247,5.251,2035.0,2034.8,4.91432]
[1742405677449,5.251,2035.0,2034.9,4.91424]
[1742405678056,5.251,2035.0,2034.8,9.82865]
[1742405678237,5.251,2035.0,2034.9,4.91424]
[1742405678564,5.251,2035.0,2034.8,4.91432]
[1742405678942,5.251,2035.0,2034.7,4.9147]
[1742405679132,5.251,2035.0,2034.8,4.91444]
[1742405679836,5.251,2035.0,2034.8,4.91434]
[1742405680237,8.458028,2035.0,2034.5,4.91503]
[1742405680478,9.44590383,2034.9,2034.4,6.06]
[1742405680656,9.44590383,2034.9,2034.5,4.91502]
[1742405681030,9.44590383,2034.9,2034.6,4.91496]
[1742405681266,13.5333347,2034.9,2034.5,9.83021]
[1742405681561,13.5333047,2034.9,2034.5,9.83021]
[1742405681763,9.00188087,2034.9,2034.5,9.83013]
[1742405681963,9.00188087,2034.9,2034.6,4.91492]
[1742405682132,13.91632087,2034.9,2034.5,4.91505]
[1742405682333,4.91457,2034.8,2034.4,15.89076]
[1742405682666,4.91498,2034.6,2034.4,6.06]
[1742405683165,4.91623,2034.1,2033.8,6.06]
[1742405683370,4.91623,2034.1,2033.7,10.60483]
[1742405683532,5.223,2034.2,2033.9,4.91664]
[1742405683866,10.13895,2034.2,2033.9,4.91664]
[1742405684169,10.13895,2034.2,2033.8,4.9169]
[1742405684335,10.13895,2034.2,2033.8,4.91675]
[1742405684676,11.49541565,2034.2,2033.9,4.91657]
[1742405685367,6.57947565,2034.2,2033.9,9.8331]
[1742405685543,5.223,2034.2,2034.0,4.91626]
[1742405685863,0.55,2034.5,2033.7,5.68784]
[1742405685864,6.43289729,2034.6,2033.7,5.68784]
[1742405686067,6.43289729,2034.6,2033.9,4.91656]
[1742405686068,4.91587,2034.3,2033.9,4.91656]
[1742405686368,4.91646,2034.0,2033.7,11.74776]
[1742405686669,9.44744383,2034.2,2033.8,4.91669]
[1742405686837,6.68935604,2034.2,2033.8,4.91669]
[1742405687165,4.91649,2034.0,2033.6,4.91736]
[1742405687365,4.91723,2033.7,2033.3,4.9181]
[1742405687527,4.91767,2033.5,2033.2,10.97826]
[1742405687731,4.91767,2033.5,2033.2,4.91826]
[1742405688270,4.91754,2033.6,2033.2,9.83639]
[1742405688569,4.91767,2033.5,2033.2,4.91813]
[1742405689165,4.91767,2033.5,2033.1,5.71836]
[1742405689467,4.91801,2033.4,2033.1,5.7183]
[1742405689671,4.91762,2033.5,2033.1,5.71825]
[1742405690065,4.91762,2033.5,2033.2,4.91832]
[1742405690444,10.27525383,2033.6,2033.2,9.83652]
[1742405690645,5.77,2033.7,2033.4,4.91774]
[1742405691062,5.46718,2033.7,2033.4,4.91774]
[1742405691257,5.217,2033.8,2033.6,4.91719]
[1742405691634,5.217,2033.8,2033.5,4.91759]
[1742405691635,5.217,2033.8,2033.4,4.91786]
[1742405691837,4.91723,2033.7,2033.3,4.91795]
[1742405692042,4.9174,2033.6,2033.3,4.91795]
[1742405692243,5.59755023,2033.7,2033.4,4.91785]
[1742405692438,5.217,2033.8,2033.3,4.91802]
[1742405692678,5.217,2033.8,2033.1,0.7998]
[1742405692679,3.0,2034.0,2033.8,4.9168]
[1742405692842,5.219,2034.1,2033.9,9.83318]
[1742405693040,5.219,2034.1,2033.9,4.91652]
[1742405693970,0.55,2034.2,2033.8,4.91686]
[1742405694146,4.91625,2034.1,2033.6,6.06]
[1742405694347,5.46652,2034.0,2033.6,6.06]
[1742405694872,2.81256238,2034.2,2033.9,4.91664]
[1742405695077,2.81256238,2034.2,2034.0,4.9163]
[1742405695243,7.72856238,2034.2,2033.9,4.91664]
[1742405695660,0.55,2034.2,2034.0,4.91629]
[1742405695978,4.91625,2034.1,2033.8,4.91681]
[1742405696475,4.91646,2034.0,2033.7,4.91693]
[1742405696775,9.44767383,2034.1,2033.7,4.91693]
[1742405697474,4.53142383,2034.1,2033.8,4.91687]
[1742405697654,5.46597,2034.2,2033.8,9.83362]
[1742405697849,9.36895828,2034.2,2033.9,4.91666]
[1742405698183,4.91626,2034.1,2033.8,4.91675]
[1742405698677,4.86626,2034.1,2033.8,4.91675]
[1742405699275,9.36895828,2034.2,2033.8,9.83351]
[1742405699465,4.91626,2034.1,2033.8,4.91675]
[1742405700486,5.46612,2034.2,2033.7,4.91714]
[1742405700692,5.46612,2034.2,2033.8,9.83347]
[1742405700859,5.46612,2034.2,2033.9,4.91664]
[1742405701057,5.46612,2034.2,2033.8,9.83345]
[1742405701453,0.55,2034.2,2033.6,6.06]
[1742405701749,0.55,2034.2,2033.9,4.91664]
[1742405701950,0.55,2034.2,2034.0,4.91633]
[1742405702165,0.55,2034.2,2033.9,4.91657]
[1742405702363,0.7516,2034.5,2034.2,9.83173]
[1742405702592,0.7516,2034.7,2034.4,4.91533]
[1742405702778,5.204,2034.6,2034.4,4.91533]
[1742405702993,0.55,2034.5,2034.4,4.91533]
[1742405703186,0.7516,2034.7,2034.5,4.91521]
[1742405703352,5.9546,2035.0,2034.1,5.68114]
[1742405703691,5.9546,2035.0,2034.3,4.91569]
[1742405703889,5.203,2035.0,2034.8,4.91426]
[1742405704045,5.203,2035.0,2034.7,4.91463]
[1742405704245,5.203,2035.0,2034.8,4.91447]
[1742405704550,0.7516,2035.2,2034.6,0.765]
[1742405704867,0.7516,2035.2,2034.9,4.91415]
[1742405705040,3.69193729,2035.3,2035.0,4.91391]
[1742405705245,4.89289185,2035.4,2035.1,4.91375]
[1742405705445,0.36146802,2035.4,2035.3,4.91328]
[1742405705983,27.10947,2035.7,2035.3,4.91328]
[1742405706374,22.197,2035.7,2035.4,4.91303]
[1742405706575,16.997,2035.7,2035.2,4.91347]
[1742405706785,0.69193729,2035.9,2035.5,4.91272]
[1742405706988,4.91183,2035.9,2035.3,10.97311]
[1742405707294,4.91207,2035.8,2035.4,4.91303]
[1742405707605,11.15235698,2035.9,2035.4,4.91284]
[1742405707897,0.55,2035.8,2035.6,4.91243]
[1742405708394,0.55,2035.8,2035.3,6.06]
[1742405708395,5.46201,2035.9,2035.3,10.97322]
[1742405708553,7.00312738,2035.9,2035.3,10.97322]
[1742405708754,7.00312738,2035.9,2035.3,10.97313]
[1742405709181,1.54111738,2035.9,2035.4,4.91283]
[1742405709379,10.10365,2036.0,2035.5,4.9127]
[1742405709586,5.192,2036.0,2035.6,4.91232]
[1742405709907,0.55,2035.9,2035.6,4.91232]
[1742405710254,0.55,2035.9,2035.5,0.833]
[1742405710581,5.46188,2035.9,2035.5,0.833]
[1742405710803,0.55,2035.9,2035.5,5.74573]
[1742405711297,5.46185,2035.9,2035.5,0.833]
[1742405711452,0.55,2035.9,2035.5,5.74575]
[1742405711659,0.55,2035.9,2035.6,4.91245]
[1742405712661,0.55,2035.9,2035.5,10.6583]
[1742405713005,5.46195,2035.9,2035.5,5.74561]
[1742405713213,4.91195,2035.9,2035.5,5.74579]
[1742405713500,4.91193,2035.9,2035.5,0.833]
[1742405713791,4.91193,2035.9,2035.3,12.23529092]
[1742405713792,4.91266,2035.6,2035.3,6.06]
[1742405714031,4.91266,2035.6,2034.4,4.91522]
[1742405714032,4.91367,2035.2,2034.9,0.833]
[1742405714197,4.91381,2035.1,2034.6,5.74781]
[1742405714396,4.91353,2035.2,2034.7,4.91454]
[1742405714597,7.91313,2035.4,2034.7,6.368754]
[1742405714802,7.91313,2035.4,2034.9,4.91423]
[1742405715000,3.0,2035.4,2035.0,4.91383]
[1742405715200,0.55,2035.5,2035.1,4.91358]
[1742405715420,4.9132,2035.4,2035.0,0.833]
[1742405715632,13.19920383,2035.6,2035.0,0.833]
[1742405715801,4.91313,2035.4,2035.0,5.74692]
[1742405716006,4.9139,2035.1,2034.8,0.833]
[1742405716207,4.91346,2035.3,2034.8,5.74735]
[1742405716500,4.91353,2035.2,2034.8,5.74735]
[1742405716711,4.91414,2035.0,2034.6,5.9403]
[1742405717001,4.91365,2035.2,2034.6,10.85523]
[1742405717220,6.37698738,2035.1,2034.6,10.85512]
[1742405717416,10.09947,2035.3,2034.8,4.9143]
[1742405717738,5.186,2035.3,2034.9,4.91414]
[1742405717938,5.186,2035.3,2034.9,4.91418]
[1742405718116,12.82627,2035.4,2034.9,9.8282]
[1742405718302,4.91308,2035.4,2034.9,9.8282]
[1742405718496,8.46282,2035.5,2035.1,4.91371]
[1742405718831,11.09331279,2035.5,2035.0,5.6683]
[1742405719333,9.82635,2035.4,2035.0,0.7545]
[1742405719634,9.82636,2035.4,2035.0,5.66849]
[1742405719798,4.91313,2035.4,2035.0,5.66849]
[1742405719997,4.91328,2035.3,2035.0,0.7545]
[1742405721220,4.91304,2035.4,2035.0,5.66847]
[1742405721448,2.66291411,2035.6,2035.3,4.91309]
[1742405721633,2.66291411,2035.6,2035.0,1.812754]
[1742405721634,10.5803,2035.6,2035.2,4.91345]
[1742405722001,4.91283,2035.5,2035.1,4.91369]
[1742405722201,4.91305,2035.4,2035.0,5.66844]
[1742405722450,4.91343,2035.3,2035.0,6.8145]
[1742405723299,4.91308,2035.4,2035.0,11.7285]
[1742405724044,10.884428,2035.4,2035.0,11.7285]
[1742405724343,5.971168,2035.4,2035.0,11.7285]
[1742405724702,4.9133,2035.3,2035.0,6.8145]
[1742405725159,5.971168,2035.4,2035.0,11.72835]
[1742405725539,0.755,2035.6,2035.1,4.91373]
[1742405725705,4.9128,2035.5,2035.1,4.91373]
[1742405726141,4.91307,2035.4,2035.0,5.6685]
[1742405726323,4.91307,2035.4,2035.0,10.5825]
[1742405726526,4.91307,2035.4,2035.0,5.66834]
[1742405726733,5.66766,2035.6,2035.2,4.91351]
[1742405727047,12.41554838,2035.6,2035.2,4.91351]
[1742405727243,4.91282,2035.5,2035.1,4.91375]
[1742405727420,4.91282,2035.5,2035.1,4.91366]
[1742405727850,4.91266,2035.6,2035.1,4.91361]